bitfinex/quotes_ETHUSD_20250815
["timestamp","ask_amount","ask_price","bid_price","bid_amount"]
[1755247952680,5.70275983,4645.2,4645.1,1e-08]
[1755247952879,9.67162167,4645.2,4645.1,1e-08]
[1755247953079,10.13403603,4645.2,4645.1,1e-08]
[1755247953275,7.29653603,4645.2,4645.1,1e-08]
[1755247953445,10.03297419,4645.2,4645.1,1e-08]
[1755247954277,10.47747419,4645.2,4645.1,1e-08]
[1755247954464,11.05633603,4645.2,4645.1,1e-08]
[1755247955144,37.48215542,4645.2,4645.1,1e-08]
[1755247955374,40.77015542,4645.2,4645.1,1e-08]
[1755247955577,42.03021449,4645.2,4645.1,1e-08]
[1755247955787,38.74221449,4645.2,4645.1,1e-08]
[1755247956075,42.03021449,4645.2,4645.1,1e-08]
[1755247956458,42.03021449,4645.2,4640.4,0.16266885]
[1755247956459,2.817,4645.0,4640.4,0.16266885]
[1755247956682,0.55,4643.1,4642.3,0.4768]
[1755247956847,2.15405824,4642.4,4642.3,0.4768]
[1755247957051,10.9819593,4642.4,4642.3,0.9106]
[1755247957252,8.45705824,4642.4,4642.3,0.9106]
[1755247957469,10.04462597,4642.4,4642.3,0.4768]
[1755247957800,2.15419745,4642.1,4642.0,0.4768]
[1755247957998,5.61707827,4642.1,4642.0,0.4768]
[1755247958161,6.97176298,4642.1,4641.3,0.4338]
[1755247958368,2.15452234,4641.4,4641.3,0.9106]
[1755247958587,3.50920451,4641.4,4641.3,0.9106]
[1755247959397,5.15452234,4641.4,4641.3,0.9106]
[1755247959601,2.15456876,4641.3,4638.6,5.171]
[1755247959895,2.15456876,4641.3,4638.8,5.15572993]
[1755247960193,3.306,4641.3,4640.3,2.15499381]
[1755247960562,5.45977354,4641.3,4640.4,0.9106]
[1755247960775,5.45977354,4641.3,4640.5,0.9106]
[1755247960971,2.15466285,4641.1,4640.6,0.9106]
[1755247961199,3.3052,4641.3,4640.7,0.9106]
[1755247961398,3.3052,4641.3,4640.8,0.9106]
[1755247961679,3.3052,4641.3,4640.9,0.9106]
[1755247961890,3.3052,4641.3,4641.0,0.9106]
[1755247962091,5.45976965,4641.3,4641.1,0.4338]
[1755247962395,3.3052,4641.3,4641.2,0.9106]
[1755247962601,0.15988082,4642.1,4641.2,0.9106]
[1755247962602,3.308,4641.4,4641.2,0.9106]
[1755247962789,3.308,4641.5,4641.3,0.9106]
[1755247962968,3.308,4641.7,4641.4,0.9106]
[1755247963168,3.308,4641.7,4641.5,0.4338]
[1755247963497,3.308,4642.0,4641.5,0.9106]
[1755247963700,3.308,4642.0,4641.3,2.15456172]
[1755247963873,3.308,4642.0,4641.6,0.9106]
[1755247964076,3.308,4642.0,4641.4,0.21545617]
[1755247964404,3.308,4642.0,4641.5,0.9106]
[1755247964577,3.309,4642.7,4642.2,2.15413496]
[1755247964766,3.309,4642.7,4642.3,0.9106]
[1755247964973,3.309,4642.7,4642.3,3.06469563]
[1755247965168,3.309,4642.7,4642.4,0.9106]
[1755247965501,3.309,4642.7,4642.5,2.15396605]
[1755247965706,3.309,4642.7,4642.6,0.9106]
[1755247966009,5.17,4644.0,4642.6,0.9106]
[1755247966302,5.17,4644.0,4642.3,0.52404717]
[1755247966303,2.15355323,4643.5,4642.7,3.06448297]
[1755247966486,3.309,4643.4,4642.9,2.15381818]
[1755247966686,3.309,4643.4,4643.1,2.15369468]
[1755247966998,3.308,4643.7,4643.2,0.9106]
[1755247967203,0.108,4643.6,4643.3,3.06423244]
[1755247967502,2.15328516,4644.1,4643.4,0.9106]
[1755247967503,2.15349836,4643.7,4643.4,0.9106]
[1755247967699,2.15335315,4644.0,4643.4,0.9106]
[1755247967700,3.315,4643.6,4643.4,0.4338]
[1755247967899,3.315,4643.6,4642.5,0.108]
[1755247967900,3.315,4643.6,4643.5,0.9106]
[1755247968104,3.423,4643.6,4643.5,0.9106]
[1755247968402,3.423,4643.6,4642.7,0.4768]
[1755247968403,2.15380896,4643.0,4642.7,0.4768]
[1755247968629,3.317,4642.9,4642.7,0.4768]
[1755247968800,0.108,4642.8,4642.7,0.4768]
[1755247968975,0.108,4642.8,4642.7,0.9106]
[1755247969989,0.108,4642.8,4642.4,2.15405811]
[1755247970190,0.108,4642.8,4642.7,0.4768]
[1755247970386,0.108,4642.8,4642.7,0.9106]
[1755247971931,0.108,4642.8,4642.0,0.108]
[1755247972223,0.108,4642.8,4642.3,2.15409989]
[1755247972440,0.108,4642.8,4642.6,0.001]
[1755247972820,0.108,4642.8,4642.7,0.8997]
[1755247975831,0.108,4642.8,4642.7,3.3590947]
[1755247976145,0.108,4643.2,4643.1,2.15373349]
[1755247976332,0.6,4643.6,4643.3,2.15362296]
[1755247976545,2.15295561,4644.8,4643.4,0.02153594]
[1755247976745,2.2347843,4645.5,4644.0,2.15330716]
[1755247976746,0.108,4644.1,4644.0,2.15330716]
[1755247977048,0.108,4644.1,4644.0,0.8997]
[1755247977735,0.108,4644.1,4644.0,3.0530161]
[1755247978925,0.002,4644.2,4644.1,2.15326974]
[1755247979247,0.002,4644.2,4644.1,3.05296974]
[1755247980753,0.002,4644.2,4644.1,3.57360221]
[1755247980959,0.002,4644.2,4644.1,3.68160221]
[1755247981319,0.002,4644.2,4644.1,3.23340221]
[1755247981852,0.002,4644.2,4644.1,3.16096974]
[1755247982050,0.002,4644.2,4644.1,3.05296974]
[1755247986464,0.002,4644.2,4644.1,6.36796974]
[1755247987025,0.002,4644.2,4644.1,3.71096974]
[1755247987240,0.002,4644.2,4644.1,7.02696974]
[1755247987487,0.002,4644.2,4644.1,4.62900269]
[1755247987690,0.002,4644.2,4644.1,7.94500269]
[1755247987891,0.002,4644.2,4644.1,4.62900269]
[1755247988196,0.002,4644.2,4644.1,4.07900269]
[1755247988376,0.002,4644.2,4644.1,7.39400269]
[1755247990265,0.002,4644.2,4644.1,4.07900269]
[1755247990463,0.002,4644.2,4644.1,6.94580269]
[1755247990696,0.002,4644.2,4644.1,3.63080269]
[1755247990861,0.002,4644.2,4644.1,5.91876974]
[1755247991067,0.002,4644.2,4644.1,6.47496974]
[1755247991263,0.002,4644.2,4644.1,2.26126974]
[1755247991598,0.002,4644.2,4644.1,5.46726974]
[1755247994986,0.002,4644.2,4644.1,2.15326974]
[1755247995182,0.002,4644.2,4644.1,5.46626974]
[1755247995394,0.002,4644.2,4644.1,2.15326974]
[1755247995703,0.002,4644.2,4644.1,5.46526974]
[1755247998019,0.002,4644.2,4644.1,2.15326974]
[1755247998213,0.002,4644.2,4644.1,5.46526974]
[1755248000200,0.002,4644.2,4644.1,5.46606974]
[1755248002124,0.002,4644.2,4644.1,5.93686974]
[1755248002289,0.002,4644.2,4644.1,2.15406974]
[1755248002496,0.002,4644.2,4644.1,5.46206974]
[1755248002698,0.0012,4644.2,4644.1,2.15406974]
[1755248002917,0.0012,4644.2,4644.1,5.46206974]
[1755248006740,0.0012,4644.2,4644.1,5.46006974]
[1755248007242,0.0012,4644.2,4644.1,5.45906974]
[1755248009309,0.0012,4644.2,4644.1,2.15406974]
[1755248009827,0.0012,4644.2,4644.1,5.45706974]
[1755248010157,0.4742,4644.2,4644.1,0.0008]
[1755248010309,0.4742,4644.2,4644.1,3.3038]
[1755248010515,0.0012,4644.2,4644.1,3.3038]
[1755248011228,0.4742,4644.2,4644.1,3.3038]
[1755248013346,0.4742,4644.2,4644.1,3.3028]
[1755248014531,2.62742337,4644.2,4644.1,0.0008]
[1755248014838,0.4742,4644.2,4644.1,3.3028]
[1755248016247,0.4742,4644.2,4644.1,0.0008]
[1755248016449,0.4742,4644.2,4644.1,3.3028]
[1755248017613,0.4742,4644.2,4644.1,0.0008]
[1755248017943,0.4742,4644.2,4644.1,3.3008]
[1755248018646,0.0012,4644.2,4644.1,3.3008]
[1755248020050,0.0012,4644.2,4644.1,5.92786974]
[1755248020251,0.0012,4644.2,4644.1,6.68439396]
[1755248021253,0.0012,4644.2,4644.1,3.2998]
[1755248022641,0.0012,4644.2,4644.1,0.0008]
[1755248022963,0.0012,4644.2,4644.1,3.2988]
[1755248023259,0.0012,4644.2,4644.1,5.45206974]
[1755248023420,0.0012,4644.2,4644.1,5.92586974]
[1755248023622,0.0012,4644.2,4644.1,3.2988]
[1755248024425,0.0012,4644.2,4644.1,0.0008]
[1755248024945,0.0012,4644.2,4644.1,3.2978]
[1755248026128,0.0012,4644.2,4644.1,5.45106974]
[1755248026528,0.0012,4644.2,4644.1,5.92486974]
[1755248026726,0.0012,4644.2,4644.1,3.7716]
[1755248026972,0.0012,4644.2,4644.1,3.2978]
[1755248028136,0.0012,4644.2,4644.1,0.0008]
[1755248028340,0.4742,4644.2,4644.1,3.2968]
[1755248030254,0.0012,4644.2,4644.1,3.2968]
[1755248030437,0.0012,4644.2,4644.1,5.45006974]
[1755248030759,0.0012,4644.2,4644.1,3.2968]
[1755248032277,0.0012,4644.2,4644.1,2.15406974]
[1755248032603,0.0012,4644.2,4644.1,3.2948]
[1755248033375,0.0012,4644.2,4644.1,5.44806974]
[1755248033878,0.0012,4644.2,4644.1,5.44906974]
[1755248035177,0.0012,4644.2,4644.1,6.34516974]
[1755248035772,0.0012,4644.2,4644.1,5.89976974]
[1755248037181,0.0012,4644.2,4644.1,5.44906974]
[1755248038772,0.0012,4644.2,4644.1,5.45006974]
[1755248039484,0.0012,4644.2,4644.1,2.15506974]
[1755248039664,0.0012,4644.2,4644.1,5.44706974]
[1755248040602,0.0012,4644.2,4644.1,7.52748671]
[1755248040757,0.108,4645.1,4645.0,2.15285252]
[1755248040961,0.002,4645.2,4645.1,2.15280618]
[1755248041172,0.002,4645.2,4645.1,3.07043424]
[1755248041372,0.002,4645.2,4645.1,6.34290618]
[1755248041573,0.002,4645.2,4645.1,7.41865386]
[1755248041963,0.002,4645.2,4645.1,6.52255386]
[1755248042271,0.002,4645.2,4645.1,6.97325386]
[1755248043084,0.002,4645.2,4645.1,7.41865386]
[1755248043309,0.002,4645.2,4645.0,0.1088]
[1755248043513,0.5496,4645.1,4645.0,0.0008]
[1755248043662,0.5496,4645.1,4645.0,3.2938]
[1755248043862,0.108,4645.1,4645.0,3.2938]
[1755248044965,0.1072,4645.1,4645.0,3.2938]
[1755248045899,2.70160618,4645.1,4645.0,0.0008]
[1755248046195,0.5488,4645.1,4645.0,0.0008]
[1755248047994,0.1072,4645.1,4645.0,0.0008]
[1755248048301,0.002,4645.2,4645.1,2.15280618]
[1755248048514,0.002,4645.2,4645.1,6.34090618]
[1755248048677,0.002,4645.2,4645.1,6.99890618]
[1755248049001,0.002,4645.2,4645.1,7.91416205]
[1755248049905,1e-08,4645.2,4645.1,10.91416205]
[1755248050263,0.00120001,4645.6,4645.5,2.70262081]
[1755248050488,0.00120001,4645.6,4645.5,6.10462081]
[1755248050671,0.00120001,4645.6,4645.5,7.91606173]
[1755248050874,0.00120001,4645.6,4645.5,3.62666173]
[1755248051183,0.00120001,4645.6,4645.5,6.91966173]
[1755248051383,0.00120001,4645.6,4645.5,3.62666173]
[1755248051585,0.00120001,4645.6,4645.5,6.91966173]
[1755248051785,0.00120001,4645.6,4645.5,7.36506173]
[1755248051990,0.00120001,4645.6,4645.5,3.62666173]
[1755248052189,0.00120001,4645.6,4645.5,6.36096173]
[1755248053497,0.00120001,4645.6,4645.5,6.81166173]
[1755248053712,0.00120001,4645.6,4645.5,3.51866173]
[1755248053872,0.00120001,4645.6,4645.5,6.81166173]
[1755248054892,0.00120001,4645.6,4645.5,6.80966173]
[1755248055197,0.00120001,4645.6,4645.5,7.25506173]
[1755248055799,0.00120001,4645.6,4645.5,7.36306173]
[1755248057070,0.00120001,4645.6,4645.5,7.91306173]
[1755248058509,1e-08,4645.7,4645.6,2.70257447]
[1755248058705,1e-08,4645.7,4645.6,11.15893267]
[1755248058869,1e-08,4645.7,4645.6,7.84640693]
[1755248059072,1e-08,4645.7,4645.6,11.13840693]
[1755248059302,1e-08,4645.7,4645.6,7.84640693]
[1755248059505,1e-08,4645.7,4645.6,11.13840693]
[1755248060393,1e-08,4645.7,4645.6,11.13940693]
[1755248061278,1e-08,4646.2,4645.9,2.15243548]
[1755248061472,1e-08,4646.2,4646.1,2.70234282]
[1755248061678,1e-08,4646.2,4646.1,9.10134282]
[1755248061977,1e-08,4646.2,4646.1,10.00834282]
[1755248068298,1e-08,4646.2,4646.1,10.09452482]
[1755248068616,1e-08,4646.2,4646.1,6.80352482]
[1755248068812,1e-08,4646.2,4646.1,11.06567049]
[1755248071427,1e-08,4646.2,4646.1,9.60767049]
[1755248071596,1e-08,4646.2,4646.1,10.15767049]
[1755248072003,1e-08,4646.2,4646.1,10.07148849]
[1755248072202,1e-08,4646.2,4646.1,6.78448849]
[1755248072403,1e-08,4646.2,4646.1,10.07148849]
[1755248073029,1e-08,4646.2,4646.1,10.52928849]
[1755248074393,1e-08,4646.2,4646.1,10.07148849]
[1755248075711,1e-08,4646.2,4646.1,6.78448849]
[1755248075916,1e-08,4646.2,4646.1,10.07048849]
[1755248076120,0.46510001,4646.2,4646.1,3.23448849]
[1755248076341,0.46510001,4646.2,4646.1,5.54634282]
[1755248076548,1e-08,4646.2,4646.1,5.54634282]
[1755248076838,1e-08,4646.2,4646.1,6.09634282]
[1755248077439,1e-08,4646.2,4646.1,6.55414282]
[1755248077670,1e-08,4646.2,4646.1,10.00334282]
[1755248077800,1e-08,4646.2,4646.1,11.21892065]
[1755248079334,1e-08,4646.2,4646.1,10.76972065]
[1755248079533,1e-08,4646.2,4646.1,10.77072065]
[1755248079840,1e-08,4646.2,4646.1,11.21992065]
[1755248081647,1e-08,4646.2,4646.1,11.22072065]
[1755248087026,0.002,4647.0,4646.9,2.70197228]
[1755248087347,0.0012,4647.0,4646.9,6.47337329]
[1755248087554,0.0012,4647.0,4646.9,6.58057329]
[1755248087847,0.4663,4647.0,4646.9,6.58057329]
[1755248092057,0.4663,4647.0,4646.9,3.29457329]
[1755248092238,0.9387,4647.0,4646.9,6.09517228]
[1755248092421,0.4655,4647.0,4646.9,6.09517228]
[1755248094230,0.0004,4647.0,4646.9,6.09517228]
[1755248095168,0.0004,4647.0,4646.9,9.58877228]
[1755248095332,0.0004,4647.0,4646.9,10.05847228]
[1755248095649,0.0004,4647.0,4646.9,11.27952329]
[1755248096990,1e-08,4647.2,4647.1,2.70187966]
[1755248097138,1e-08,4647.2,4647.1,9.00939845]
[1755248097342,1e-08,4647.2,4647.1,11.08127461]
[1755248101480,1e-08,4647.7,4647.6,5.70164816]
[1755248101774,1e-08,4647.7,4647.6,8.98764816]
[1755248101977,1e-08,4647.7,4647.6,10.05814816]
[1755248102145,1e-08,4647.7,4647.6,10.05894816]
[1755248102337,1e-08,4647.7,4647.6,7.99401444]
[1755248102543,1e-08,4647.7,4647.6,11.28001444]
[1755248104013,0.002,4648.5,4648.4,2.70127785]
[1755248104208,1e-08,4648.7,4648.6,5.7011853]
[1755248104426,1e-08,4648.7,4648.6,8.9861853]
[1755248104716,1e-08,4648.7,4648.6,10.70057699]
[1755248105074,0.4665,4649.2,4649.0,5.70100021]
[1755248105273,0.46305908,4651.5,4649.0,9.09320021]
[1755248105274,0.1072,4650.5,4649.0,9.09320021]
[1755248105471,0.4665,4649.7,4649.0,9.09320021]
[1755248105675,0.4732,4650.1,4649.0,9.09320021]
[1755248105869,0.4665,4649.5,4649.0,9.09320021]
[1755248106076,0.4685,4649.1,4649.0,9.09320021]
[1755248107411,0.9417,4649.1,4649.0,2.25820021]
[1755248107578,0.9417,4649.1,4647.6,1.22186628]
[1755248107908,1.06706281,4649.0,4648.2,2.15135383]
[1755248108074,0.1072,4649.0,4648.5,2.15122303]
[1755248108274,0.9397,4648.9,4648.5,5.43622303]
[1755248108471,0.9397,4648.8,4648.5,5.43622303]
[1755248108704,0.9397,4648.7,4648.5,5.43622303]
[1755248108907,0.1072,4649.0,4648.6,2.15118243]
[1755248109115,0.1072,4649.0,4648.7,2.15113552]
[1755248109300,0.1072,4649.0,4648.2,2.25852778]
[1755248109495,0.9397,4648.9,4648.4,2.15123161]
[1755248109809,0.9397,4648.8,4648.5,2.15121584]
[1755248110012,0.9397,4648.7,4648.6,5.4361853]
[1755248110524,0.9397,4648.7,4648.3,2.15132414]
[1755248110734,0.1072,4648.5,4648.3,2.15132414]
[1755248110906,0.002,4649.1,4649.0,2.15100021]
[1755248111115,0.002,4649.1,4649.0,6.01451021]
[1755248111116,0.4685,4649.1,4649.0,6.01451021]
[1755248111275,0.002,4649.1,4649.0,6.10020021]
[1755248111477,0.002,4649.1,4649.0,6.4326131]
[1755248111687,0.002,4649.4,4649.2,0.55]
[1755248111915,0.4665,4650.4,4649.5,2.15076889]
[1755248112134,0.1072,4650.7,4650.1,2.25768967]
[1755248112283,0.4665,4650.5,4650.4,2.15035265]
[1755248112490,0.4665,4650.5,4650.4,5.44435265]
[1755248112689,0.9397,4650.5,4650.4,5.44435265]
[1755248113216,0.4665,4650.5,4650.4,5.44435265]
[1755248113436,0.4665,4650.9,4650.5,2.15030641]
[1755248113610,0.4665,4650.9,4650.8,2.15016771]
[1755248113791,0.4665,4650.9,4650.8,5.44516771]
[1755248114407,0.4665,4650.9,4650.8,5.55236771]
[1755248115404,0.4732,4651.3,4650.8,3.4022]
[1755248115405,0.4665,4651.3,4650.8,3.4022]
[1755248115706,0.5804,4651.7,4650.8,3.4022]
[1755248115707,0.4665,4651.2,4651.1,2.15002902]
[1755248115913,0.4665,4651.2,4651.1,5.44502902]
[1755248116726,0.4665,4651.6,4651.1,3.295]
[1755248117039,0.1072,4651.9,4651.1,3.4022]
[1755248117222,0.002,4651.9,4651.8,0.1072]
[1755248117719,0.4752,4651.9,4651.8,3.298]
[1755248117913,0.9417,4651.9,4651.8,3.298]
[1755248118320,0.9417,4651.9,4651.6,0.1072]
[1755248118510,0.9397,4651.8,4650.6,3.0]
[1755248118706,0.9397,4651.7,4651.2,0.1072]
[1755248118911,0.9397,4651.6,4651.3,3.298]
[1755248119118,0.4732,4651.6,4651.3,3.298]
[1755248119430,0.9397,4651.5,4651.3,5.44793384]
[1755248119636,0.1092,4651.9,4651.3,5.44793384]
[1755248119804,0.9397,4651.4,4651.3,2.14993384]
[1755248120006,0.9397,4651.4,4651.3,5.44693384]
[1755248121037,0.4665,4651.4,4651.3,5.44693384]
[1755248121522,0.4665,4651.4,4651.3,5.44593384]
[1755248122107,0.4665,4651.4,4651.3,3.296]
[1755248122312,0.9382,4651.4,4651.2,0.1072]
[1755248122609,0.4665,4651.4,4651.3,0.0008]
[1755248122809,2.61639035,4651.4,4651.3,0.0008]
[1755248123015,0.4665,4651.4,4651.3,0.0008]
[1755248123334,3.08809035,4651.4,4651.3,0.0008]
[1755248123632,3.10825316,4651.4,4651.3,0.0008]
[1755248124013,0.9382,4651.4,4651.3,0.0008]
[1755248124714,3.08809035,4651.4,4651.3,0.0008]
[1755248128029,3.10825316,4651.4,4651.3,0.0008]
[1755248129238,0.9382,4651.4,4651.3,0.0008]
[1755248129455,0.9374,4651.4,4651.3,0.0008]
[1755248130340,0.1072,4651.5,4651.3,0.0008]
[1755248131211,0.1072,4651.4,4651.3,2.17221807]
[1755248131415,0.002,4651.6,4651.5,2.14984413]
[1755248131835,0.002,4651.6,4651.5,2.17134257]
[1755248132158,0.002,4651.6,4651.5,3.07474257]
[1755248132528,0.002,4651.6,4651.5,2.62744257]
[1755248132738,0.002,4651.6,4651.5,2.60594413]
[1755248133942,0.002,4651.6,4651.4,2.14988987]
[1755248134148,0.002,4651.6,4651.5,2.14984413]
[1755248134464,0.4326,4651.6,4651.5,2.14984413]
[1755248134816,0.0012,4651.6,4651.5,2.14984413]
[1755248136253,0.4326,4651.6,4651.3,0.0008]
[1755248136421,0.4314,4651.5,4651.3,2.15072596]
[1755248136617,0.0012,4651.6,4651.3,2.15072596]
[1755248136817,0.4314,4651.4,4651.3,2.15072596]
[1755248137714,0.0012,4651.6,4651.3,0.0008]
[1755248137948,0.4314,4651.4,4651.3,0.0008]
[1755248138154,2.68849035,4651.4,4651.3,0.0008]
[1755248138448,1.0103,4651.4,4651.3,0.0008]
[1755248138649,3.16019035,4651.4,4651.3,0.0008]
[1755248139218,1.0103,4651.4,4651.3,0.0008]
[1755248139445,0.5386,4651.4,4651.3,0.0008]
[1755248139947,0.1072,4651.4,4651.3,0.0008]
[1755248141443,0.46384852,4651.6,4651.5,2.14984413]
[1755248141663,0.0012,4651.6,4651.5,2.14984413]
[1755248141964,0.0012,4651.6,4651.5,3.05324413]
[1755248142265,0.0012,4651.6,4651.5,2.60594413]
[1755248142875,0.0012,4651.6,4651.5,2.60674413]
[1755248143569,0.4326,4651.6,4651.5,0.0008]
[1755248143740,0.0012,4651.6,4651.5,2.15064413]
[1755248143941,0.0012,4651.6,4651.5,0.0008]
[1755248146662,0.4326,4651.6,4651.5,0.0008]
[1755248147141,0.0012,4651.6,4651.5,0.0008]
[1755248147346,0.4326,4651.6,4651.5,0.0008]
[1755248148075,0.0012,4651.6,4651.5,0.0008]
[1755248149144,0.0012,4651.6,4651.5,2.60674413]
[1755248149347,0.0012,4651.6,4651.5,3.05404413]
[1755248151780,0.0012,4651.6,4651.5,3.07554257]
[1755248151981,0.0012,4651.6,4651.5,3.05404413]
[1755248153385,0.0012,4651.6,4651.5,3.05504413]
[1755248153582,0.0012,4651.6,4651.5,2.60774413]
[1755248153887,0.0012,4651.6,4651.5,0.0018]
[1755248153888,0.4568,4651.6,4651.5,0.0018]
[1755248154544,0.564,4651.6,4651.5,0.0018]
[1755248154997,1.0421,4651.6,4651.5,0.0018]
[1755248155150,0.564,4651.6,4651.5,0.0018]
[1755248156054,2.73396072,4651.6,4651.5,0.0018]
[1755248156252,0.564,4651.6,4651.5,0.0018]
[1755248158776,0.1084,4651.6,4651.5,0.0018]
[1755248160598,2.71379791,4651.6,4651.5,0.0018]
[1755248160799,3.67470924,4651.6,4651.5,0.0018]
[1755248160979,3.65454643,4651.6,4651.5,0.0018]
[1755248161168,3.67470924,4651.6,4651.5,0.0018]
[1755248161879,4.27470924,4651.6,4651.5,0.0018]
[1755248162081,4.25454643,4651.6,4651.5,0.0018]
[1755248163713,3.77644643,4651.6,4651.5,0.0018]
[1755248163870,2.72084643,4651.6,4651.5,0.0018]
[1755248164483,3.17644643,4651.6,4651.5,0.0018]
[1755248166613,3.17745106,4651.6,4651.5,0.0018]
[1755248171624,6.67571387,4651.6,4651.5,0.0018]
[1755248171815,6.65475106,4651.6,4651.5,0.0018]
[1755248172121,7.25475106,4651.6,4651.5,0.0018]
[1755248173529,8.02556826,4651.6,4651.5,0.0018]
[1755248174330,7.25475106,4651.6,4651.5,0.0018]
[1755248175106,8.02556826,4651.6,4651.5,0.0018]
[1755248175425,8.11172026,4651.6,4651.5,0.0018]
[1755248176537,7.34010306,4651.6,4651.5,0.0018]
[1755248177110,8.11092026,4651.6,4651.5,0.0018]
[1755248177312,7.34010306,4651.6,4651.5,0.0018]
[1755248178830,6.86200306,4651.6,4651.5,0.0018]
[1755248180109,7.34010306,4651.6,4651.5,0.0018]
[1755248180311,6.40640306,4651.6,4651.5,0.0018]
[1755248180507,10.18440274,4651.6,4651.5,0.0018]
[1755248181015,10.64000274,4651.6,4651.5,0.0018]
[1755248181797,10.06125106,4651.6,4651.5,0.0018]
[1755248182002,10.53525106,4651.6,4651.5,0.0018]
[1755248182640,41.50710514,4651.6,4651.5,0.0018]
[1755248182840,40.73628794,4651.6,4651.5,0.0018]
[1755248183235,40.82243794,4651.6,4651.5,0.0018]
[1755248183446,10.82243794,4651.6,4651.5,0.0018]
[1755248183904,40.82243794,4651.6,4651.5,0.0018]
[1755248184511,40.82243794,4651.6,4651.5,1e-08]
[1755248184708,41.02353481,4651.6,4651.5,1e-08]
[1755248185238,40.82249455,4651.6,4651.5,1e-08]
[1755248185438,41.02358184,4651.6,4651.5,1e-08]
[1755248186420,43.28958184,4651.6,4651.5,1e-08]
[1755248186744,40.82249455,4651.6,4651.5,1e-08]
[1755248187123,40.34849455,4651.6,4651.5,1e-08]
[1755248187445,41.02359401,4651.6,4651.5,1e-08]
[1755248187817,41.02559401,4651.6,4651.5,1e-08]
[1755248188030,41.02560928,4651.6,4651.5,1e-08]
[1755248188346,42.18789358,4651.6,4651.5,1e-08]
[1755248188742,42.73789358,4651.6,4651.5,1e-08]
[1755248188954,41.57560928,4651.6,4651.5,1e-08]
[1755248189453,2.15002902,4651.1,4651.0,0.001]
[1755248189763,8.91884498,4651.1,4651.0,0.001]
[1755248189956,2.15026018,4650.6,4650.5,0.001]
[1755248190114,5.91907614,4650.6,4650.5,0.001]
[1755248190458,9.585315,4650.6,4650.5,0.001]
[1755248191460,10.042515,4650.6,4650.5,0.001]
[1755248191759,9.74350158,4650.6,4650.5,0.001]
[1755248192756,10.20070158,4650.6,4650.5,0.001]
[1755248193355,5.15030641,4650.5,4650.3,0.001]
[1755248193551,8.91916861,4650.4,4650.3,0.001]
[1755248193754,8.8990058,4650.4,4650.3,0.001]
[1755248194266,8.9851758,4650.4,4650.3,0.001]
[1755248195330,9.56414066,4650.4,4650.3,0.001]
[1755248196061,10.02134066,4650.4,4650.3,0.001]
[1755248196368,9.4423758,4650.4,4650.3,0.001]
[1755248196862,8.9851758,4650.4,4650.3,0.001]
[1755248200062,5.7001758,4650.4,4650.3,0.001]
[1755248200260,9.47812849,4650.4,4650.3,0.4567]
[1755248200593,9.47812849,4650.4,4650.3,0.9037]
[1755248201382,8.8990058,4650.4,4650.3,0.4567]
[1755248201586,9.47828594,4650.4,4650.3,0.9037]
[1755248201969,9.47828594,4650.4,4650.3,0.001]
[1755248202369,9.3562058,4650.4,4650.3,0.001]
[1755248202603,8.8990058,4650.4,4650.3,0.001]
[1755248207961,8.8990058,4650.4,4650.3,0.4567]
[1755248208464,9.58565355,4650.4,4650.3,0.9037]
[1755248208665,9.0062058,4650.4,4650.3,0.9037]
[1755248209093,6.0062058,4650.4,4650.3,0.9037]
[1755248209598,9.0062058,4650.4,4650.3,0.9037]
[1755248210268,9.0062058,4650.4,4650.3,0.9045]
[1755248213027,2.7212058,4650.4,4650.3,0.9045]
[1755248213177,5.54255265,4650.4,4650.3,0.9045]
[1755248213375,6.0062058,4650.4,4650.3,0.9045]
[1755248214008,3.85505315,4650.4,4650.3,0.9045]
[1755248214209,3.3914,4650.4,4650.3,0.9045]
[1755248216317,8.54175265,4650.4,4650.3,0.0018]
[1755248216518,9.00548833,4650.4,4650.3,0.0018]
[1755248216682,9.47988833,4650.4,4650.3,0.0018]
[1755248216877,9.00548833,4650.4,4650.3,0.0018]
[1755248232908,6.00548833,4650.4,4650.3,0.4642]
[1755248233114,0.57093568,4650.4,4650.3,0.9112]
[1755248233331,3.3912,4650.4,4650.3,0.9112]
[1755248233947,3.9912,4650.4,4650.3,0.9112]
[1755248235155,6.14155265,4650.4,4650.3,0.9112]
[1755248239471,6.14355265,4650.4,4650.3,0.9112]
[1755248242266,6.14355265,4650.4,4650.3,0.4642]
[1755248243483,3.9932,4650.4,4650.3,0.8991]
[1755248245254,0.002,4650.4,4650.3,3.35455617]
[1755248247774,0.002,4650.4,4650.3,1.20415728]
[1755248248097,0.002,4650.4,4650.3,0.8991]
[1755248251199,0.002,4650.4,4650.3,0.4642]
[1755248252700,0.002,4650.4,4650.3,0.0018]
[1755248252905,0.1092,4650.4,4650.3,0.0018]
[1755248253283,0.1092,4650.4,4650.3,0.8869]
[1755248253691,0.1092,4650.4,4650.3,0.452]
[1755248254572,0.1092,4650.4,4650.3,0.8869]
[1755248255699,0.1092,4650.4,4650.3,0.452]
[1755248256316,0.1084,4650.4,4650.3,0.0018]
[1755248256678,0.1084,4650.4,4650.3,0.8869]
[1755248257386,0.1084,4650.4,4650.3,0.452]
[1755248259404,0.1084,4650.4,4650.3,0.8869]
[1755248260227,0.1076,4650.4,4650.3,0.8869]
[1755248260928,0.1076,4650.4,4650.3,0.452]
[1755248261720,0.1076,4650.4,4650.3,0.8869]
[1755248261897,0.0004,4650.4,4650.3,3.14449889]
[1755248262096,0.0004,4650.4,4650.3,4.00444564]
[1755248263498,0.0004,4650.4,4650.3,4.02594962]
[1755248263727,0.0004,4650.4,4650.3,4.00444564]
[1755248263931,0.0004,4650.4,4650.3,4.02594962]
[1755248264226,0.0004,4650.4,4650.3,7.02594962]
[1755248264426,0.0004,4650.4,4650.3,7.00444564]
[1755248265228,0.0004,4650.4,4650.3,7.55444564]